[Event "*** Titled Tuesday Blitz"]
[Site "Chess.com"]
[Date "2020.12.29"]
[Round "6"]
[White "Alonmindlin"]
[Black "IljaJoke"]
[Result "1-0"]
[WhiteElo "2708"]
[BlackElo "2470"]
[TimeControl "180+1"]
[EndTime "11:05:37 PST"]
[Termination "Alonmindlin won by resignation"]

1. d4 {[%clk 0:03:00.9]} 1... d5 {[%clk 0:02:59.7]} 2. c4 {[%clk 0:03:00.6]}
2... e6 {[%clk 0:02:59.9]} 3. Nc3 {[%clk 0:02:59.9]} 3... c5 {[%clk 0:03:00.4]}
4. cxd5 {[%clk 0:02:59.7]} 4... exd5 {[%clk 0:03:01.3]} 5. Nf3 {[%clk
0:02:59.7]} 5... Nc6 {[%clk 0:03:01.5]} 6. g3 {[%clk 0:02:59.5]} 6... Nf6 {[%clk
0:03:01.5]} 7. Bg2 {[%clk 0:02:58]} 7... cxd4 {[%clk 0:03:02]} 8. Nxd4 {[%clk
0:02:56.7]} 8... Bc5 {[%clk 0:03:02.6]} 9. Nxc6 {[%clk 0:02:53.1]} 9... bxc6
{[%clk 0:03:03.5]} 10. O-O {[%clk 0:02:52.7]} 10... O-O {[%clk 0:02:58.8]} 11.
Na4 {[%clk 0:02:52]} 11... Bb6 {[%clk 0:02:54]} 12. Nxb6 {[%clk 0:02:50.1]}
12... axb6 {[%clk 0:02:52.7]} 13. b3 {[%clk 0:02:50.5]} 13... Re8 {[%clk
0:02:40.4]} 14. Bb2 {[%clk 0:02:38.8]} 14... h5 {[%clk 0:02:34.9]} 15. h4 {[%clk
0:02:29.5]} 15... Bg4 {[%clk 0:02:33.5]} 16. Re1 {[%clk 0:02:28.5]} 16... Qe7
{[%clk 0:02:26.6]} 17. Qc2 {[%clk 0:02:25.4]} 17... Rac8 {[%clk 0:02:08.2]} 18.
Rac1 {[%clk 0:02:12.7]} 18... Qe6 {[%clk 0:02:07.7]} 19. Qd2 {[%clk 0:02:04]}
19... Qf5 {[%clk 0:01:49.2]} 20. b4 {[%clk 0:01:59.7]} 20... Ne4 {[%clk
0:01:43.9]} 21. Qd4 {[%clk 0:01:58.6]} 21... Nf6 {[%clk 0:01:22.1]} 22. Qxb6
{[%clk 0:01:55.3]} 22... Rxe2 {[%clk 0:01:14.8]} 23. Rxe2 {[%clk 0:01:54.3]}
23... Bxe2 {[%clk 0:01:15.7]} 24. Bxf6 {[%clk 0:01:47.6]} 24... Qxf6 {[%clk
0:01:13.8]} 25. Bxd5 {[%clk 0:01:46.4]} 25... Bf3 {[%clk 0:00:53.6]} 26. Bxf3
{[%clk 0:01:35.9]} 26... Qxf3 {[%clk 0:00:54.5]} 27. b5 {[%clk 0:01:35.2]} 27...
Qa3 {[%clk 0:00:21.8]} 28. Rxc6 {[%clk 0:01:30.3]} 28... Re8 {[%clk 0:00:22.3]}
29. Qc5 {[%clk 0:01:27.2]} 29... Qxa2 {[%clk 0:00:12.9]} 30. Rc8 {[%clk
0:01:25.4]} 30... Rxc8 {[%clk 0:00:12.8]} 31. Qxc8+ {[%clk 0:01:24.3]} 31... Kh7
{[%clk 0:00:13.7]} 32. Qc6 {[%clk 0:01:21.4]} 32... Qb1+ {[%clk 0:00:12.5]} 33.
Kg2 {[%clk 0:01:21.6]} 33... g6 {[%clk 0:00:09.2]} 34. b6 {[%clk 0:01:21.8]}
34... Kg7 {[%clk 0:00:04.9]} 35. b7 {[%clk 0:01:21.5]} 35... Kh7 {[%clk
0:00:04.9]} 36. Kh2 {[%clk 0:01:15]} 36... Qb2 {[%clk 0:00:04.9]} 37. Kg2 {[%clk
0:01:11.4]} 37... Qb1 {[%clk 0:00:05.1]} 38. Qc7 {[%clk 0:01:08.5]} 38... Qe4+
{[%clk 0:00:04.8]} 39. Kg1 {[%clk 0:01:08.6]} 39... Qe1+ {[%clk 0:00:04.6]} 40.
Kg2 {[%clk 0:01:08.6]} 40... Qe4+ {[%clk 0:00:05.2]} 41. Kh2 {[%clk 0:01:09]}
41... Qe2 {[%clk 0:00:03.5]} 42. Qxf7+ {[%clk 0:01:08.2]} 42... Kh6 {[%clk
0:00:03.2]} 43. b8=Q {[%clk 0:01:07.4]} 1-0

[Event "*** Titled Tuesday Blitz"]
[Site "Chess.com"]
[Date "2020.12.29"]
[Round "6"]
[White "rachidhuilda"]
[Black "1random"]
[Result "0-1"]
[WhiteElo "2232"]
[BlackElo "2427"]
[TimeControl "180+1"]
[EndTime "11:05:39 PST"]
[Termination "1random won on time"]

1. d4 {[%clk 0:03:00.9]} 1... d5 {[%clk 0:02:48.7]} 2. c4 {[%clk 0:03:00.1]}
2... c5 {[%clk 0:02:49.5]} 3. dxc5 {[%clk 0:02:49.4]} 3... Nf6 {[%clk
0:02:49.5]} 4. cxd5 {[%clk 0:02:40.6]} 4... e6 {[%clk 0:02:49.4]} 5. d6 {[%clk
0:02:16.1]} 5... Qa5+ {[%clk 0:02:49.4]} 6. Nc3 {[%clk 0:02:16.6]} 6... Qxc5
{[%clk 0:02:49]} 7. Be3 {[%clk 0:02:09]} 7... Qxd6 {[%clk 0:02:49]} 8. Qxd6
{[%clk 0:02:09.1]} 8... Bxd6 {[%clk 0:02:49.9]} 9. O-O-O {[%clk 0:02:00.7]} 9...
Be5 {[%clk 0:02:14.2]} 10. Nb5 {[%clk 0:02:00.7]} 10... a6 {[%clk 0:02:13.7]}
11. Nd6+ {[%clk 0:01:50.4]} 11... Bxd6 {[%clk 0:01:50.7]} 12. Rxd6 {[%clk
0:01:50.4]} 12... Nd5 {[%clk 0:01:49.7]} 13. Bc5 {[%clk 0:01:43.6]} 13... Nd7
{[%clk 0:01:26.6]} 14. Ba3 {[%clk 0:01:34.8]} 14... N7f6 {[%clk 0:01:26.6]} 15.
f3 {[%clk 0:00:47.9]} 15... Ne3 {[%clk 0:01:24.6]} 16. Nh3 {[%clk 0:00:47.4]}
16... Nfd5 {[%clk 0:01:21.7]} 17. Nf2 {[%clk 0:00:34.1]} 17... Nc4 {[%clk
0:01:07.3]} 18. e4 {[%clk 0:00:26.6]} 18... Nxd6 {[%clk 0:01:02.2]} 19. Bxd6
{[%clk 0:00:26.6]} 19... Ne7 {[%clk 0:00:48.3]} 20. Be2 {[%clk 0:00:21.6]} 20...
Bd7 {[%clk 0:00:48.6]} 21. Rd1 {[%clk 0:00:20.8]} 21... Rc8+ {[%clk 0:00:48.7]}
22. Kb1 {[%clk 0:00:21.3]} 22... Bb5 {[%clk 0:00:47.8]} 23. Bxb5+ {[%clk
0:00:20.1]} 23... axb5 {[%clk 0:00:48.7]} 24. Nd3 {[%clk 0:00:12.3]} 24... f6
{[%clk 0:00:46.7]} 25. Nc5 {[%clk 0:00:11.8]} 25... b6 {[%clk 0:00:29.1]} 26.
Nxe6 {[%clk 0:00:11.3]} 26... Kf7 {[%clk 0:00:30]} 27. Nf4 {[%clk 0:00:09.2]}
27... Rhd8 {[%clk 0:00:30.5]} 28. Rd3 {[%clk 0:00:00.8]} 28... g5 {[%clk
0:00:26.4]} 0-1

[Event "*** Titled Tuesday Blitz"]
[Site "Chess.com"]
[Date "2020.12.29"]
[Round "6"]
[White "Blue_Ratatoeskr"]
[Black "alexgo05"]
[Result "0-1"]
[WhiteElo "2342"]
[BlackElo "2482"]
[TimeControl "180+1"]
[EndTime "11:05:42 PST"]
[Termination "alexgo05 won by resignation"]

1. c4 {[%clk 0:03:00.9]} 1... e6 {[%clk 0:02:57.6]} 2. g3 {[%clk 0:03:00.7]}
2... Nf6 {[%clk 0:02:55]} 3. Bg2 {[%clk 0:03:01.2]} 3... d5 {[%clk 0:02:55.6]}
4. Nf3 {[%clk 0:03:00.2]} 4... Be7 {[%clk 0:02:50]} 5. d4 {[%clk 0:02:59.8]}
5... O-O {[%clk 0:02:49.8]} 6. Qc2 {[%clk 0:03:00.3]} 6... a6 {[%clk 0:02:46]}
7. Nbd2 {[%clk 0:02:56]} 7... Nbd7 {[%clk 0:02:35.9]} 8. O-O {[%clk 0:02:55.3]}
8... b6 {[%clk 0:02:35.6]} 9. cxd5 {[%clk 0:02:39.5]} 9... exd5 {[%clk
0:02:34.7]} 10. Ne5 {[%clk 0:02:32.2]} 10... Bd6 {[%clk 0:02:21.2]} 11. Ndf3
{[%clk 0:02:15.4]} 11... Bb7 {[%clk 0:02:18.5]} 12. Bg5 {[%clk 0:02:11.7]} 12...
h6 {[%clk 0:02:12.5]} 13. Bf4 {[%clk 0:02:04.2]} 13... Ne4 {[%clk 0:01:49.4]}
14. Nxd7 {[%clk 0:01:54.1]} 14... Qxd7 {[%clk 0:01:48]} 15. Bxd6 {[%clk
0:01:52.1]} 15... Qxd6 {[%clk 0:01:37.5]} 16. Rfd1 {[%clk 0:01:48.8]} 16... Rfe8
{[%clk 0:01:35.3]} 17. Rac1 {[%clk 0:01:45.1]} 17... Rac8 {[%clk 0:01:34.9]} 18.
e3 {[%clk 0:01:20.6]} 18... c5 {[%clk 0:01:30.4]} 19. dxc5 {[%clk 0:01:16.1]}
19... bxc5 {[%clk 0:01:28.7]} 20. Nd2 {[%clk 0:01:08.2]} 20... Nf6 {[%clk
0:01:21.8]} 21. Qa4 {[%clk 0:01:00.2]} 21... Qe5 {[%clk 0:01:13.5]} 22. Qa3
{[%clk 0:00:54]} 22... c4 {[%clk 0:00:48.7]} 23. Nxc4 {[%clk 0:00:49.1]} 23...
dxc4 {[%clk 0:00:40.7]} 24. Bxb7 {[%clk 0:00:46.9]} 24... Rb8 {[%clk 0:00:40.7]}
25. Bxa6 {[%clk 0:00:38.9]} 25... Rxb2 {[%clk 0:00:40.6]} 26. Bxc4 {[%clk
0:00:38.8]} 26... Ng4 {[%clk 0:00:40]} 27. Rf1 {[%clk 0:00:34.4]} 27... Qh5
{[%clk 0:00:27.4]} 28. h4 {[%clk 0:00:28]} 28... Qe5 {[%clk 0:00:27.4]} 29. Qc3
{[%clk 0:00:21]} 29... Nxf2 {[%clk 0:00:20.7]} 30. Rxf2 {[%clk 0:00:18]} 30...
Qxg3+ {[%clk 0:00:19.9]} 0-1

[Event "*** Titled Tuesday Blitz"]
[Site "Chess.com"]
[Date "2020.12.29"]
[Round "6"]
[White "HouseOfDurin"]
[Black "Kaslask"]
[Result "0-1"]
[WhiteElo "2083"]
[BlackElo "2266"]
[TimeControl "180+1"]
[EndTime "11:05:47 PST"]
[Termination "Kaslask won on time"]

1. d4 {[%clk 0:03:00.9]} 1... Nf6 {[%clk 0:02:57]} 2. Bg5 {[%clk 0:03:01.3]}
2... g6 {[%clk 0:02:54.9]} 3. Bxf6 {[%clk 0:03:01.2]} 3... exf6 {[%clk
0:02:52.8]} 4. c4 {[%clk 0:03:01.8]} 4... f5 {[%clk 0:02:52.5]} 5. Nc3 {[%clk
0:03:02.1]} 5... c5 {[%clk 0:02:51.6]} 6. e3 {[%clk 0:03:01.4]} 6... Bg7 {[%clk
0:02:45]} 7. g3 {[%clk 0:03:00.7]} 7... cxd4 {[%clk 0:02:39.7]} 8. exd4 {[%clk
0:03:01.6]} 8... Qb6 {[%clk 0:02:38.4]} 9. Qe2+ {[%clk 0:02:51.6]} 9... Kd8
{[%clk 0:02:37.5]} 10. O-O-O {[%clk 0:02:47.7]} 10... Re8 {[%clk 0:02:31.7]} 11.
Qd2 {[%clk 0:02:36.8]} 11... Nc6 {[%clk 0:02:30]} 12. Nge2 {[%clk 0:02:26.9]}
12... f4 {[%clk 0:02:20.1]} 13. Qxf4 {[%clk 0:02:07.1]} 13... f5 {[%clk
0:02:15.6]} 14. Nd5 {[%clk 0:01:56]} 14... Qa5 {[%clk 0:02:13.7]} 15. Qg5+
{[%clk 0:01:31.7]} 15... Ne7 {[%clk 0:02:12.1]} 16. Nec3 {[%clk 0:01:31.1]}
16... d6 {[%clk 0:01:58]} 17. Nxe7 {[%clk 0:01:27.6]} 17... Rxe7 {[%clk
0:01:45.5]} 18. Re1 {[%clk 0:01:27.2]} 18... Bf8 {[%clk 0:01:41]} 19. Bg2 {[%clk
0:01:05.7]} 19... h6 {[%clk 0:01:17.8]} 20. Qxg6 {[%clk 0:00:56.9]} 20... f4
{[%clk 0:01:11.8]} 21. Rxe7 {[%clk 0:00:43.7]} 21... Bxe7 {[%clk 0:01:10.5]} 22.
Re1 {[%clk 0:00:37.1]} 22... fxg3 {[%clk 0:01:03.9]} 23. Qg8+ {[%clk 0:00:29.8]}
23... Kd7 {[%clk 0:00:57.9]} 24. Bh3+ {[%clk 0:00:17.3]} 24... Kc6 {[%clk
0:00:57.5]} 25. d5+ {[%clk 0:00:14]} 25... Kc5 {[%clk 0:00:56.1]} 26. hxg3
{[%clk 0:00:11.5]} 26... Bg5+ {[%clk 0:00:52.1]} 27. Kb1 {[%clk 0:00:08.9]}
27... Bf5+ {[%clk 0:00:51.2]} 28. Bxf5 {[%clk 0:00:09.2]} 28... Rxg8 {[%clk
0:00:49.8]} 29. a3 {[%clk 0:00:08.6]} 29... Kxc4 {[%clk 0:00:47]} 30. Re4+
{[%clk 0:00:07.4]} 30... Kb3 {[%clk 0:00:33.3]} 31. Rg4 {[%clk 0:00:04.5]} 31...
Qxc3 {[%clk 0:00:26.6]} 32. bxc3 {[%clk 0:00:05.4]} 32... Re8 {[%clk 0:00:22.7]}
0-1

[Event "*** Titled Tuesday Blitz"]
[Site "Chess.com"]
[Date "2020.12.29"]
[Round "6"]
[White "drragnar1"]
[Black "maximnovik"]
[Result "1-0"]
[WhiteElo "2447"]
[BlackElo "2600"]
[TimeControl "180+1"]
[EndTime "11:05:49 PST"]
[Termination "drragnar1 won on time"]

1. g3 {[%clk 0:03:00.7]} 1... Nf6 {[%clk 0:02:58.6]} 2. Bg2 {[%clk 0:03:00.3]}
2... g6 {[%clk 0:02:59.1]} 3. c4 {[%clk 0:02:59.7]} 3... Bg7 {[%clk 0:02:58.6]}
4. Nc3 {[%clk 0:02:59.9]} 4... c5 {[%clk 0:02:57.7]} 5. Nf3 {[%clk 0:03:00.2]}
5... d5 {[%clk 0:02:56.6]} 6. cxd5 {[%clk 0:03:00.1]} 6... Nxd5 {[%clk 0:02:57]}
7. O-O {[%clk 0:03:00]} 7... O-O {[%clk 0:02:56.5]} 8. Nxd5 {[%clk 0:02:59.6]}
8... Qxd5 {[%clk 0:02:55.5]} 9. d3 {[%clk 0:03:00.2]} 9... Nc6 {[%clk
0:02:55.4]} 10. a3 {[%clk 0:02:45.8]} 10... Bd7 {[%clk 0:02:53.8]} 11. Qc2
{[%clk 0:02:44.5]} 11... b6 {[%clk 0:02:49.7]} 12. Bd2 {[%clk 0:02:44.6]} 12...
Rac8 {[%clk 0:02:48]} 13. Bc3 {[%clk 0:02:44.8]} 13... Qd6 {[%clk 0:02:41.5]}
14. Bxg7 {[%clk 0:02:37]} 14... Kxg7 {[%clk 0:02:41.4]} 15. Qc3+ {[%clk
0:02:37.5]} 15... e5 {[%clk 0:02:35.5]} 16. e3 {[%clk 0:02:36.8]} 16... f6
{[%clk 0:02:23]} 17. Nd2 {[%clk 0:02:36.7]} 17... Be6 {[%clk 0:02:20.4]} 18.
Rad1 {[%clk 0:02:25.3]} 18... Rfd8 {[%clk 0:02:19.2]} 19. Ne4 {[%clk 0:02:24.1]}
19... Qd7 {[%clk 0:02:19.1]} 20. f4 {[%clk 0:02:20.9]} 20... Rf8 {[%clk
0:01:35.6]} 21. fxe5 {[%clk 0:01:57.4]} 21... fxe5 {[%clk 0:01:33.4]} 22. Ng5
{[%clk 0:01:52.3]} 22... Bd5 {[%clk 0:00:56.3]} 23. Bh3 {[%clk 0:01:33.1]} 23...
Qe7 {[%clk 0:00:51.6]} 24. Bxc8 {[%clk 0:01:04.2]} 24... Qxg5 {[%clk 0:00:41]}
25. Rxf8 {[%clk 0:01:01.1]} 25... Qxe3+ {[%clk 0:00:35.1]} 26. Rf2 {[%clk
0:00:59.6]} 26... Nd4 {[%clk 0:00:35.1]} 27. Bg4 {[%clk 0:00:50.5]} 27... h5
{[%clk 0:00:34]} 28. Re1 {[%clk 0:00:44.8]} 28... Qg5 {[%clk 0:00:27.2]} 29. Bd1
{[%clk 0:00:41.2]} 29... h4 {[%clk 0:00:26]} 30. g4 {[%clk 0:00:34.7]} 30... h3
{[%clk 0:00:18.5]} 31. Qd2 {[%clk 0:00:34.4]} 31... Qe7 {[%clk 0:00:04.2]} 32.
Qe3 {[%clk 0:00:34.1]} 32... Ba8 {[%clk 0:00:03.6]} 33. Qxe5+ {[%clk 0:00:33.1]}
1-0

[Event "*** Titled Tuesday Blitz"]
[Site "Chess.com"]
[Date "2020.12.29"]
[Round "6"]
[White "Nemsko"]
[Black "J36225"]
[Result "1-0"]
[WhiteElo "2331"]
[BlackElo "2468"]
[TimeControl "180+1"]
[EndTime "11:05:50 PST"]
[Termination "Nemsko won by resignation"]

1. e4 {[%clk 0:03:00.9]} 1... e5 {[%clk 0:02:50.7]} 2. Nf3 {[%clk 0:03:00.8]}
2... Nc6 {[%clk 0:02:50.9]} 3. Bb5 {[%clk 0:02:59.5]} 3... a6 {[%clk 0:02:50.6]}
4. Ba4 {[%clk 0:02:59.7]} 4... Nf6 {[%clk 0:02:50.4]} 5. O-O {[%clk 0:02:58.9]}
5... Nxe4 {[%clk 0:02:50.4]} 6. d4 {[%clk 0:02:58.3]} 6... b5 {[%clk 0:02:49.9]}
7. Bb3 {[%clk 0:02:58.3]} 7... d5 {[%clk 0:02:50]} 8. dxe5 {[%clk 0:02:58.9]}
8... Be6 {[%clk 0:02:50.3]} 9. c3 {[%clk 0:02:58.8]} 9... Be7 {[%clk 0:02:49.6]}
10. Bf4 {[%clk 0:02:56.6]} 10... O-O {[%clk 0:02:47.4]} 11. Nbd2 {[%clk
0:02:56.8]} 11... Nc5 {[%clk 0:02:37.4]} 12. Bc2 {[%clk 0:02:55.5]} 12... d4
{[%clk 0:02:33.9]} 13. Ne4 {[%clk 0:02:49.9]} 13... dxc3 {[%clk 0:02:29.2]} 14.
Nxc3 {[%clk 0:02:48.4]} 14... Nb4 {[%clk 0:02:19.7]} 15. Bb1 {[%clk 0:02:32.5]}
15... Nbd3 {[%clk 0:02:16.7]} 16. Qd2 {[%clk 0:02:20.2]} 16... Nxf4 {[%clk
0:02:09]} 17. Qxf4 {[%clk 0:02:18.9]} 17... h6 {[%clk 0:01:41.9]} 18. Ne4 {[%clk
0:02:11]} 18... Nxe4 {[%clk 0:01:39]} 19. Qxe4 {[%clk 0:02:11.9]} 19... g6
{[%clk 0:01:35.6]} 20. Qe3 {[%clk 0:02:05.4]} 20... Kg7 {[%clk 0:01:33.1]} 21.
Be4 {[%clk 0:01:59.8]} 21... Rb8 {[%clk 0:01:19.4]} 22. Rfd1 {[%clk 0:01:50.2]}
22... Qc8 {[%clk 0:01:19.1]} 23. Nd4 {[%clk 0:01:45.5]} 23... c5 {[%clk
0:01:12]} 24. Nc6 {[%clk 0:01:29.9]} 24... Rb7 {[%clk 0:01:10.8]} 25. Nxe7
{[%clk 0:01:26.5]} 25... Rxe7 {[%clk 0:01:09.9]} 26. Rd6 {[%clk 0:01:25.9]}
26... Rd7 {[%clk 0:00:57.5]} 27. Rad1 {[%clk 0:01:24.5]} 27... Rfd8 {[%clk
0:00:57]} 28. Qf3 {[%clk 0:01:14.3]} 28... Rxd6 {[%clk 0:00:53.6]} 29. Qf6+
{[%clk 0:01:13.7]} 29... Kg8 {[%clk 0:00:47.4]} 30. exd6 {[%clk 0:01:14.6]}
30... Qb8 {[%clk 0:00:21.9]} 31. Bxg6 {[%clk 0:00:55.6]} 31... Rxd6 {[%clk
0:00:20.5]} 32. Bxf7+ {[%clk 0:00:54.9]} 32... Bxf7 {[%clk 0:00:13.2]} 33. Qxd6
{[%clk 0:00:53.9]} 33... Qb7 {[%clk 0:00:12]} 34. Qd8+ {[%clk 0:00:50.2]} 34...
Kg7 {[%clk 0:00:12]} 35. h4 {[%clk 0:00:46.1]} 35... Qe4 {[%clk 0:00:10.6]} 36.
Rd3 {[%clk 0:00:30.2]} 36... Qxh4 {[%clk 0:00:04.8]} 37. Qxh4 {[%clk 0:00:28.6]}
1-0

[Event "*** Titled Tuesday Blitz"]
[Site "Chess.com"]
[Date "2020.12.29"]
[Round "6"]
[White "GoltsevDmitry2000"]
[Black "Piotrek1979"]
[Result "0-1"]
[WhiteElo "2688"]
[BlackElo "2421"]
[TimeControl "180+1"]
[EndTime "11:05:54 PST"]
[Termination "Piotrek1979 won by checkmate"]

1. e4 {[%clk 0:02:59.1]} 1... c6 {[%clk 0:02:59.4]} 2. Nf3 {[%clk 0:02:58.6]}
2... d5 {[%clk 0:03:00.3]} 3. exd5 {[%clk 0:02:56.6]} 3... cxd5 {[%clk
0:02:58.9]} 4. b3 {[%clk 0:02:55.5]} 4... Nc6 {[%clk 0:02:59.3]} 5. Bb2 {[%clk
0:02:50.5]} 5... Bg4 {[%clk 0:02:58.3]} 6. Be2 {[%clk 0:02:46.9]} 6... Nf6
{[%clk 0:02:58]} 7. O-O {[%clk 0:02:45.6]} 7... e6 {[%clk 0:02:57.5]} 8. d4
{[%clk 0:02:42]} 8... Bd6 {[%clk 0:02:54.5]} 9. Nbd2 {[%clk 0:02:31.6]} 9... O-O
{[%clk 0:02:53.3]} 10. h3 {[%clk 0:02:30.2]} 10... Bh5 {[%clk 0:02:51.4]} 11.
Re1 {[%clk 0:02:23.4]} 11... Rc8 {[%clk 0:02:49.6]} 12. c3 {[%clk 0:02:22.2]}
12... a6 {[%clk 0:02:47.5]} 13. a4 {[%clk 0:02:20.7]} 13... Na5 {[%clk
0:02:44.8]} 14. b4 {[%clk 0:02:15.6]} 14... Nc6 {[%clk 0:02:31]} 15. Ne5 {[%clk
0:02:06.3]} 15... Bxe2 {[%clk 0:02:29.2]} 16. Qxe2 {[%clk 0:02:07.2]} 16... Bxe5
{[%clk 0:02:27.1]} 17. dxe5 {[%clk 0:02:05.7]} 17... Nd7 {[%clk 0:02:25.5]} 18.
f4 {[%clk 0:01:42.3]} 18... d4 {[%clk 0:02:25.5]} 19. b5 {[%clk 0:01:36.1]}
19... Ncxe5 {[%clk 0:02:25]} 20. cxd4 {[%clk 0:01:25.5]} 20... Rc2 {[%clk
0:02:17.3]} 21. Ba3 {[%clk 0:01:22.9]} 21... Nc4 {[%clk 0:02:14.1]} 22. Bxf8
{[%clk 0:01:19.2]} 22... Ndb6 {[%clk 0:01:57]} 23. Bxg7 {[%clk 0:01:02.7]} 23...
Rxd2 {[%clk 0:01:55.5]} 24. Qg4 {[%clk 0:00:59.2]} 24... h5 {[%clk 0:01:49.2]}
25. Qg3 {[%clk 0:00:38.6]} 25... h4 {[%clk 0:01:37]} 26. Qg4 {[%clk 0:00:38]}
26... Kh7 {[%clk 0:01:05.1]} 27. a5 {[%clk 0:00:33.5]} 27... f5 {[%clk
0:00:58.9]} 28. Qg5 {[%clk 0:00:21.1]} 28... Qxg5 {[%clk 0:00:49.9]} 29. fxg5
{[%clk 0:00:22]} 29... Nd5 {[%clk 0:00:47.1]} 30. bxa6 {[%clk 0:00:18.2]} 30...
bxa6 {[%clk 0:00:46]} 31. Be5 {[%clk 0:00:12.8]} 31... Nce3 {[%clk 0:00:40.4]}
32. g3 {[%clk 0:00:12.2]} 32... hxg3 {[%clk 0:00:37.9]} 33. Bxg3 {[%clk
0:00:13.1]} 33... Rg2+ {[%clk 0:00:37.4]} 34. Kh1 {[%clk 0:00:13.3]} 34... Rxg3
{[%clk 0:00:38.3]} 35. Rac1 {[%clk 0:00:10.3]} 35... f4 {[%clk 0:00:38.2]} 36.
Rc6 {[%clk 0:00:08.5]} 36... f3 {[%clk 0:00:38]} 37. Rxe6 {[%clk 0:00:05]} 37...
f2 {[%clk 0:00:37.7]} 38. Rb1 {[%clk 0:00:04.1]} 38... Rxh3# {[%clk 0:00:37.5]}
0-1

[Event "*** Titled Tuesday Blitz"]
[Site "Chess.com"]
[Date "2020.12.29"]
[Round "6"]
[White "northridgehawk"]
[Black "KetiGrant"]
[Result "1-0"]
[WhiteElo "2331"]
[BlackElo "2437"]
[TimeControl "180+1"]
[EndTime "11:05:56 PST"]
[Termination "northridgehawk won by resignation"]

1. e4 {[%clk 0:03:00.9]} 1... c5 {[%clk 0:02:59.1]} 2. Nf3 {[%clk 0:03:00]} 2...
Nc6 {[%clk 0:02:59.4]} 3. d4 {[%clk 0:03:00.4]} 3... cxd4 {[%clk 0:02:59.8]} 4.
Nxd4 {[%clk 0:03:01.2]} 4... e5 {[%clk 0:02:59.9]} 5. Nb5 {[%clk 0:03:00.7]}
5... d6 {[%clk 0:02:59.2]} 6. N1c3 {[%clk 0:02:58.5]} 6... a6 {[%clk 0:02:58.6]}
7. Na3 {[%clk 0:02:58.1]} 7... b5 {[%clk 0:02:58.6]} 8. Nd5 {[%clk 0:02:57.5]}
8... Nge7 {[%clk 0:02:50.5]} 9. g3 {[%clk 0:02:54.1]} 9... Nxd5 {[%clk
0:02:45.1]} 10. exd5 {[%clk 0:02:48]} 10... Ne7 {[%clk 0:02:41.9]} 11. Bg2
{[%clk 0:02:48.3]} 11... g6 {[%clk 0:02:39.7]} 12. O-O {[%clk 0:02:48.4]} 12...
Bg7 {[%clk 0:02:39.6]} 13. c3 {[%clk 0:02:47]} 13... O-O {[%clk 0:02:38.8]} 14.
Nc2 {[%clk 0:02:46.2]} 14... h6 {[%clk 0:02:34.7]} 15. a4 {[%clk 0:02:45.6]}
15... Rb8 {[%clk 0:02:29.6]} 16. axb5 {[%clk 0:02:45.1]} 16... axb5 {[%clk
0:02:29.7]} 17. Nb4 {[%clk 0:02:45.6]} 17... f5 {[%clk 0:02:09.1]} 18. Ra7
{[%clk 0:02:41.8]} 18... Bb7 {[%clk 0:02:03.1]} 19. Qd3 {[%clk 0:02:37.6]} 19...
e4 {[%clk 0:01:56.7]} 20. Qxb5 {[%clk 0:02:35.3]} 20... Bxd5 {[%clk 0:01:55.2]}
21. Qa6 {[%clk 0:02:15]} 21... Be6 {[%clk 0:01:44.1]} 22. Rd1 {[%clk 0:02:11.6]}
22... Rb6 {[%clk 0:01:42.5]} 23. Qa3 {[%clk 0:01:56.9]} 23... Nc6 {[%clk
0:01:26.1]} 24. Nd5 {[%clk 0:01:39.1]} 24... Nxa7 {[%clk 0:01:22.3]} 25. Qxa7
{[%clk 0:01:30.1]} 25... Bxd5 {[%clk 0:01:13.2]} 26. Rxd5 {[%clk 0:01:31]} 26...
Rc6 {[%clk 0:00:49.2]} 27. Bf1 {[%clk 0:01:27.9]} 27... Rf7 {[%clk 0:00:47.1]}
28. Qa3 {[%clk 0:01:25.2]} 28... Qb6 {[%clk 0:00:40.4]} 29. Be3 {[%clk 0:01:22]}
29... Qc7 {[%clk 0:00:33.6]} 30. Bb5 {[%clk 0:01:18]} 30... g5 {[%clk
0:00:30.9]} 31. Bxc6 {[%clk 0:01:17.1]} 31... Qxc6 {[%clk 0:00:30.9]} 32. Qxd6
{[%clk 0:01:16.8]} 32... Qc4 {[%clk 0:00:30.2]} 33. Rc5 {[%clk 0:01:11.6]} 33...
Qe2 {[%clk 0:00:28.8]} 34. Qd5 {[%clk 0:01:00.2]} 34... f4 {[%clk 0:00:25.5]}
35. Rc7 {[%clk 0:00:32.2]} 35... Qe1+ {[%clk 0:00:17]} 36. Kg2 {[%clk
0:00:31.4]} 36... f3+ {[%clk 0:00:17]} 37. Kh3 {[%clk 0:00:31.8]} 37... Qf1+
{[%clk 0:00:15.2]} 38. Kg4 {[%clk 0:00:31.6]} 38... h5+ {[%clk 0:00:15.2]} 39.
Kxg5 {[%clk 0:00:31.7]} 39... Bf6+ {[%clk 0:00:10.7]} 40. Kg6 {[%clk 0:00:29.4]}
1-0

[Event "*** Titled Tuesday Blitz"]
[Site "Chess.com"]
[Date "2020.12.29"]
[Round "6"]
[White "ViktoriyaTarasova"]
[Black "Mikasinski"]
[Result "0-1"]
[WhiteElo "2353"]
[BlackElo "2524"]
[TimeControl "180+1"]
[EndTime "11:05:57 PST"]
[Termination "Mikasinski won by resignation"]

1. d4 {[%clk 0:02:54]} 1... Nf6 {[%clk 0:02:59.9]} 2. c4 {[%clk 0:02:53]} 2...
g6 {[%clk 0:03:00.4]} 3. Nc3 {[%clk 0:02:52.2]} 3... Bg7 {[%clk 0:03:01.1]} 4.
e4 {[%clk 0:02:52.7]} 4... d6 {[%clk 0:03:01.8]} 5. h3 {[%clk 0:02:52.6]} 5...
O-O {[%clk 0:03:02.4]} 6. Be3 {[%clk 0:02:49]} 6... Na6 {[%clk 0:03:00.6]} 7.
Nf3 {[%clk 0:02:47.5]} 7... e5 {[%clk 0:03:00.1]} 8. d5 {[%clk 0:02:47.4]} 8...
Nc5 {[%clk 0:02:59.5]} 9. Qc2 {[%clk 0:02:42.8]} 9... a5 {[%clk 0:02:59.5]} 10.
g4 {[%clk 0:02:41.5]} 10... c6 {[%clk 0:02:46]} 11. Nd2 {[%clk 0:02:39.5]} 11...
a4 {[%clk 0:02:44.6]} 12. Be2 {[%clk 0:02:37.6]} 12... Qa5 {[%clk 0:02:43.1]}
13. f3 {[%clk 0:02:33.8]} 13... Bd7 {[%clk 0:02:35.7]} 14. Kf2 {[%clk
0:02:25.7]} 14... Rfc8 {[%clk 0:02:16.4]} 15. h4 {[%clk 0:01:34.7]} 15... cxd5
{[%clk 0:02:13.1]} 16. exd5 {[%clk 0:01:34.3]} 16... a3 {[%clk 0:01:10.4]} 17.
b3 {[%clk 0:01:31.2]} 17... e4 {[%clk 0:01:10]} 18. g5 {[%clk 0:01:13.7]} 18...
exf3 {[%clk 0:01:08.5]} 19. gxf6 {[%clk 0:01:09.4]} 19... Bxf6 {[%clk 0:01:02]}
20. Nce4 {[%clk 0:00:27]} 20... Bxa1 {[%clk 0:00:58.1]} 21. Rxa1 {[%clk
0:00:24.7]} 21... fxe2 {[%clk 0:00:57.9]} 22. Bxc5 {[%clk 0:00:20.5]} 22... Qd8
{[%clk 0:00:43]} 23. Bd4 {[%clk 0:00:18.5]} 23... Qxh4+ {[%clk 0:00:42.6]} 24.
Kxe2 {[%clk 0:00:19.1]} 24... Bg4+ {[%clk 0:00:42]} 25. Kd3 {[%clk 0:00:19.1]}
25... Bf5 {[%clk 0:00:33.5]} 26. Kc3 {[%clk 0:00:14.2]} 26... Re8 {[%clk
0:00:17.7]} 27. Re1 {[%clk 0:00:12.4]} 27... Qxe1 {[%clk 0:00:13.5]} 28. Nf6+
{[%clk 0:00:12.5]} 28... Kf8 {[%clk 0:00:12.3]} 29. Nxh7+ {[%clk 0:00:10.4]}
29... Ke7 {[%clk 0:00:12.5]} 30. Bf6+ {[%clk 0:00:09.3]} 30... Kd7 {[%clk
0:00:12.6]} 0-1